Workbook

Sheet 請求書入力
A1: 取引先ｺｰﾄﾞ | Q1: 工事番号 | AD1: 工事名 | BK1: 大区分
BO2: 土木（１）・建築（２）・設計（３）
BQ3: のうちから選んで記入してください
J4: 取引先コード、工事番号、工事名は担当者に確認後記入してください | BJ4: 番号 | BK4: 所属先/班名 | BW4: 請求項目
A5: 〒 | N5: － | W5: 担当者 | BK5: 日付 | BL5: 中区分 | BO5: 担当者名 | BR5: 内容 | BW5: 数量 | BX5: 単位 | BY5: 単価 | BZ5: 金額合計 | CA5: 非課税
AO6: 赤枠で囲んだ部分をすべて記入して下さい | BJ6: 1
BJ7: 2 | BZ7: =+BW7*BY7 -> 0
A8: 住 所 | BJ8: 3 | BZ8: 0 | CA8: 0
BJ9: 4 | BZ9: 0 | CA9: 0
BJ10: 5 | BZ10: 0 | CA10: 0
A11: 会社名 | BN11: 中区分は担当者に確認後記入してください
BK12: 注文書番号 | BT12: 契約金額
A13: 代表者名 | BK13: 注文書発行している場合は記入してください | BT13: 出来高（納入高）
A14: ＴＥＬ | BT14: 既請求分
BT15: 今回請求分
A16: F A X | BT16: 残 額
BT17: 契約金額の取り決めがない場合は未記入で提出してください
A19: 請 求 月 | I19: 平成 | M19: 年 | Q19: 月 | AN19: 振込先
AN21: 銀行名
A22: 請求年月日 | I22: 平成 | O22: 年 | T22: 月 | Y22: 日
AN23: 支店名
AN25: 預金種別
AN27: 口座番号
AN29: 口座名義

Sheet 請求書印刷
A2: 請求書 （正）
A5: 請求先 | C5: ㈱占部組 | K5: 御中 | M5: 請求元 | N5: 社名 | P5: =+'請求書入力 '!$I$11 -> 0
N6: 業者番号 | P6: =+'請求書入力 '!$I$1 -> 0 | S6: 印
N7: 代表者名 | P7: =+'請求書入力 '!$I$13 -> 0
A8: 請求日 | D8: 平成 | E8: =+'請求書入力 '!$L$22 -> 0 | F8: 年 | G8: =+'請求書入力 '!$Q$22 -> 0 | H8: 月 | I8: =+'請求書入力 '!$V$22 -> 0 | J8: 日 | N8: 住所 | P8: =+"〒 "&'請求書入力 '!$I$5&+'請求書入力 '!$P$5 -> 〒
A9: 請求締日 | E9: =+'請求書入力 '!$I$19 -> 平成 | F9: =+'請求書入力 '!$K$19 -> 0 | H9: =+'請求書入力 '!$M$19 -> 年 | I9: =+'請求書入力 '!$O$19 -> 0 | J9: 月末締 | P9: =+'請求書入力 '!$I$8 -> 0
N10: 電話 | P10: =+'請求書入力 '!$I$14 -> 0
A11: 御請求金額 | C11: =+$S$26 -> 0 | N11: ＦＡＸ | P11: =+'請求書入力 '!$I$16 -> 0
N12: 振込先 | P12: =+'請求書入力 '!$AS$21 -> 0 | R12: =+'請求書入力 '!$AS$23 -> 0 | S12: =+'請求書入力 '!$AS$25 -> 0
P13: =+'請求書入力 '!$AS$27 -> 0 | R13: =+'請求書入力 '!$AS$29 -> 0
B15: 工事番号 | E15: =+'請求書入力 '!$W$1 -> 0 | P15: 担当者 | Q15: =+'請求書入力 '!$AB$5 -> 0
B16: 工事名 | E16: =+'請求書入力 '!$AH$1 -> 0
B17: 大区分 | D17: =+'請求書入力 '!$BL$1 -> 0
A19: 番号 | B19: 所属先/班名 | N19: 請求項目
B20: 日付 | C20: 中区分 | F20: 担当者名 | I20: 内容 | N20: 数量 | O20: 単位 | P20: 単価 | Q20: 金額 | R20: 消費税額 | S20: 金額合計
A21: 1 | B21: =+'請求書入力 '!$BK$6 -> 00:00:00 | C21: =+'請求書入力 '!$BL$6 -> 0 | F21: =+'請求書入力 '!$BO$6 -> 00:00:00 | I21: =+'請求書入力 '!$BR$6 -> 0 | N21: =+'請求書入力 '!$BW$6 -> 0 | O21: =+'請求書入力 '!$BX$6 -> 0 | P21: =+'請求書入力 '!$BY$6 -> 0 | Q21: =+'請求書入力 '!$BZ$6 -> 0 | R21: =IF(T21="非","0",+Q21*0.1) -> 0 | S21: =+Q21+R21 -> 0 | T21: =+'請求書入力 '!$CA$6 -> 0
A22: 2 | B22: =+'請求書入力 '!$BK$7 -> 00:00:00 | C22: =+'請求書入力 '!$BL$7 -> 0 | F22: =+'請求書入力 '!$BO$7 -> 00:00:00 | I22: =+'請求書入力 '!$BR$7 -> 0 | N22: =+'請求書入力 '!$BW$7 -> 0 | O22: =+'請求書入力 '!$BX$7 -> 0 | P22: =+'請求書入力 '!$BY$7 -> 0 | Q22: =+'請求書入力 '!$BZ$7 -> 0 | R22: =IF(T22="非","0",+Q22*0.1) -> 0 | S22: =+Q22+R22 -> 0 | T22: =+'請求書入力 '!$CA$7 -> 0
A23: 3 | B23: =+'請求書入力 '!$BK$8 -> 00:00:00 | C23: =+'請求書入力 '!$BL$8 -> 0 | F23: =+'請求書入力 '!$BO$8 -> 00:00:00 | I23: =+'請求書入力 '!$BR$8 -> 0 | N23: =+'請求書入力 '!$BW$8 -> 0 | O23: =+'請求書入力 '!$BX$8 -> 0 | P23: =+'請求書入力 '!$BY$8 -> 0 | Q23: =+'請求書入力 '!$BZ$8 -> 0 | R23: =IF(T23="非","0",+Q23*0.1) -> 0 | S23: 0 | T23: =+'請求書入力 '!$CA$8 -> 0
A24: 4 | B24: =+'請求書入力 '!$BK$9 -> 00:00:00 | C24: =+'請求書入力 '!$BL$9 -> 0 | F24: =+'請求書入力 '!$BO$9 -> 00:00:00 | I24: =+'請求書入力 '!$BR$9 -> 0 | N24: =+'請求書入力 '!$BW$9 -> 0 | O24: =+'請求書入力 '!$BX$9 -> 0 | P24: =+'請求書入力 '!$BY$9 -> 0 | Q24: =+'請求書入力 '!$BZ$9 -> 0 | R24: =IF(T24="非","0",+Q24*0.1) -> 0 | S24: 0 | T24: =+'請求書入力 '!$CA$9 -> 0
A25: 5 | B25: =+'請求書入力 '!$BK$10 -> 00:00:00 | C25: =+'請求書入力 '!$BL$10 -> 0 | F25: =+'請求書入力 '!$BO$10 -> 00:00:00 | I25: =+'請求書入力 '!$BR$10 -> 0 | N25: =+'請求書入力 '!$BW$10 -> 0 | O25: =+'請求書入力 '!$BX$10 -> 0 | P25: =+'請求書入力 '!$BY$10 -> 0 | Q25: =+'請求書入力 '!$BZ$10 -> 0 | R25: =IF(T25="非","0",+Q25*0.1) -> 0 | S25: 0 | T25: =+'請求書入力 '!$CA$10 -> 0
N26: 合計金額 | S26: =SUM(S21:S25) -> 0
B28: 注文書番号 | E28: =+'請求書入力 '!$BN$12 -> 0
B29: 契約金額 | E29: =+'請求書入力 '!$BW$12 -> 0 | P29: 社長承認 | Q29: 現場担当者 | R29: 経理担当者
B30: 出来高（納入高） | E30: =+'請求書入力 '!$BW$13 -> 0
B31: 既請求分 | E31: =+'請求書入力 '!$BW$14 -> 0
B32: 今回請求分 | E32: =+'請求書入力 '!$BW$15 -> 0
B33: 残 額 | E33: =+'請求書入力 '!$BW$16 -> 0
A34: 請求書 （支払伝票）
A37: 請求先 | C37: ㈱占部組 | K37: 御中 | M37: 請求元 | N37: 社名 | P37: =+'請求書入力 '!$I$11 -> 0
N38: 業者番号 | P38: =+'請求書入力 '!$I$1 -> 0 | S38: 印
N39: 代表者名 | P39: =+'請求書入力 '!$I$13 -> 0
A40: 請求日 | D40: 平成 | E40: =+'請求書入力 '!$L$22 -> 0 | F40: 年 | G40: =+'請求書入力 '!$Q$22 -> 0 | H40: 月 | I40: =+'請求書入力 '!$V$22 -> 0 | J40: 日 | N40: 住所 | P40: =+"〒 "&'請求書入力 '!$I$5&+'請求書入力 '!$P$5 -> 〒
A41: 請求締日 | E41: =+'請求書入力 '!$I$19 -> 平成 | F41: =+'請求書入力 '!$K$19 -> 0 | H41: =+'請求書入力 '!$M$19 -> 年 | I41: =+'請求書入力 '!$O$19 -> 0 | J41: 月末締 | P41: =+'請求書入力 '!$I$8 -> 0
N42: 電話 | P42: =+'請求書入力 '!$I$14 -> 0
A43: 御請求金額 | C43: =+$S$26 -> 0 | N43: ＦＡＸ | P43: =+'請求書入力 '!$I$16 -> 0
N44: 振込先 | P44: =+'請求書入力 '!$AS$21 -> 0 | R44: =+'請求書入力 '!$AS$23 -> 0 | S44: =+'請求書入力 '!$AS$25 -> 0
P45: =+'請求書入力 '!$AS$27 -> 0 | R45: =+'請求書入力 '!$AS$29 -> 0
B47: 工事番号 | E47: =+'請求書入力 '!$W$1 -> 0 | P47: 担当者 | Q47: =+'請求書入力 '!$AB$5 -> 0
B48: 工事名 | E48: =+'請求書入力 '!$AH$1 -> 0
B49: 大区分 | D49: =+'請求書入力 '!$BL$1 -> 0
B51: 支払い条件 | F51: 支払い金額 | N51: 支払日 | Q51: 伝票番号
B52: 翌末払い | N52: 年 月 日
B53: 翌々10日払い | N53: 年 月 日
B54: ＯＰ締め払い | N54: 年 月 日
B55: その他払い | N55: 年 月 日
B56: 立替相殺
B57: 業者 | N57: 金額
B58: 適用
B66: 担当者印 | D66: 社長印 | G66: 経理課長印

Sheet 請求書入力 (記入例)
A1: 取引先ｺｰﾄﾞ | I1: 8088 | Q1: 工事番号 | W1: 2700108 | AD1: 工事名 | AH1: 水素ステーション | BK1: 大区分 | BL1: 土木（1）
BO2: 土木（１）・建築（２）・設計（３）
BQ3: のうちから選んで記入してください
J4: 取引先コード、工事番号、工事名は現場担当者又は本社堂本に確認後記入してください | BJ4: 番号 | BK4: 所属先/班名 | BW4: 請求項目
A5: 〒 | I5: 110 | N5: － | P5: 5959 | W5: 担当者 | AB5: 山本 | BK5: 日付 | BL5: 中区分 | BO5: 担当者名 | BR5: 内容 | BW5: 数量 | BX5: 単位 | BY5: 単価 | BZ5: 金額合計 | CA5: 非課税
AO6: 赤枠で囲んだ部分をすべて記入して下さい | BJ6: 1 | BK6: 2016-02-28 | BL6: 土木 | BO6: 大神 | BR6: 基礎工事部材 | BW6: 1 | BX6: 式 | BY6: 50000 | BZ6: =+BW6*BY6 -> 50000
BJ7: 2 | BK7: 2016-02-28 | BL7: 土木 | BR7: バイパス代立替 | BW7: 1 | BX7: 式 | BY7: 3000 | BZ7: =+BW7*BY7 -> 3000 | CA7: 非
A8: 住 所 | I8: 大阪市北区淀川町1-12 | BJ8: 3 | BZ8: 0 | CA8: 0
BJ9: 4 | BZ9: 0 | CA9: 0
BJ10: 5 | BZ10: 0 | CA10: 0
A11: 会社名 | I11: ㈱山本建設 | BN11: 中区分は担当者に確認後記入してください
BK12: 注文書番号 | BN12: B27008458 | BT12: 契約金額 | BW12: 1080000
A13: 代表者名 | I13: 山本カンサイ | BK13: 注文書発行している場合は記入してください | BT13: 出来高（納入高） | BW13: 864000
A14: ＴＥＬ | I14: 090-9999-9999 | BT14: 既請求分 | BW14: 648000
BT15: 今回請求分 | BW15: 216000
A16: F A X | I16: 050-999-5555 | BT16: 残 額 | BW16: =+BW12-BW13 -> 216000
BT17: 契約金額の取り決めがない場合は未記入で提出してください
A19: 請 求 月 | I19: 平成 | K19: 28 | M19: 年 | O19: 2 | Q19: 月 | AN19: 振込先
AN21: 銀行名 | AS21: カンサイ銀行
A22: 請求年月日 | I22: 平成 | L22: 28 | O22: 年 | Q22: 2 | T22: 月 | V22: 28 | Y22: 日
AN23: 支店名 | AS23: 淀橋支店
AN25: 預金種別 | AS25: 普通
AN27: 口座番号 | AS27: 0010100
AN29: 口座名義 | AS29: カ.ヤマモトケンセツ

Sheet 請求書印刷 (記入例)
A2: 請求書 （正）
A5: 請求先 | C5: ㈱占部組 | K5: 御中 | M5: 請求元 | N5: 社名 | P5: =+'請求書入力 (記入例)'!I11 -> ㈱山本建設
N6: 業者番号 | P6: =+'請求書入力 (記入例)'!$I$1 -> 8088 | S6: 印
N7: 代表者名 | P7: =+'請求書入力 (記入例)'!$I$13 -> 山本カンサイ
A8: 請求日 | D8: 平成 | E8: =+'請求書入力 (記入例)'!$L$22 -> 28 | F8: 年 | G8: =+'請求書入力 (記入例)'!$Q$22 -> 2 | H8: 月 | I8: =+'請求書入力 (記入例)'!$V$22 -> 28 | J8: 日 | N8: 住所 | P8: =+"〒 "&'請求書入力 (記入例)'!$I$5&" "&+'請求書入力 (記入例)'!$P$5 -> 〒 110 5959
A9: 請求締日 | D9: 平成 | E9: =+'請求書入力 (記入例)'!$K$19 -> 28 | G9: 年 | H9: =+'請求書入力 (記入例)'!$O$19 -> 2 | J9: 月末締 | P9: =+'請求書入力 (記入例)'!I8 -> 大阪市北区淀川町1-12
N10: 電話 | P10: =+'請求書入力 (記入例)'!$I$14 -> 090-9999-9999
A11: 御請求金額 | C11: =+$S$26 -> 60000 | N11: ＦＡＸ | P11: =+'請求書入力 (記入例)'!$I$16 -> 050-999-5555
N12: 振込先 | P12: =+'請求書入力 (記入例)'!$AS$21 -> カンサイ銀行 | Q12: =+'請求書入力 (記入例)'!$AS$23 -> 淀橋支店 | R12: =+'請求書入力 (記入例)'!$AS$25 -> 普通
P13: =+'請求書入力 (記入例)'!$AS$27 -> 0010100 | Q13: =+'請求書入力 (記入例)'!$AS$29 -> カ.ヤマモトケンセツ
B15: 工事番号 | E15: =+'請求書入力 (記入例)'!$W$1 -> 2700108 | P15: 担当者 | Q15: =+'請求書入力 (記入例)'!$AB$5 -> 山本
B16: 工事名 | E16: =+'請求書入力 (記入例)'!AH$1 -> 水素ステーション
B17: 大区分 | D17: =+'請求書入力 (記入例)'!$BL$1 -> 土木（1）
A19: 番号 | B19: 所属先/班名 | N19: 請求項目
B20: 日付 | C20: 中区分 | F20: 担当者名 | I20: 内容 | N20: 数量 | O20: 単位 | P20: 単価 | Q20: 金額 | R20: 消費税額 | S20: 金額合計
A21: 1 | B21: =+'請求書入力 (記入例)'!$BK$6 -> 2016-02-28 | C21: =+'請求書入力 (記入例)'!$BL$6 -> 土木 | F21: =+'請求書入力 (記入例)'!$BO$6 -> 大神 | I21: =+'請求書入力 (記入例)'!$BR$6 -> 基礎工事部材 | N21: =+'請求書入力 (記入例)'!$BW$6 -> 1 | O21: =+'請求書入力 (記入例)'!$BX$6 -> 式 | P21: =+'請求書入力 (記入例)'!$BY$6 -> 50000 | Q21: =+'請求書入力 (記入例)'!$BZ$6 -> 50000 | R21: =+Q21*0.08 -> 4000 | S21: =+Q21+R21 -> 54000
A22: 2 | B22: =+'請求書入力 (記入例)'!$BK$7 -> 2016-02-28 | C22: =+'請求書入力 (記入例)'!$BL$7 -> 土木 | F22: =+'請求書入力 (記入例)'!$BO$7 -> 00:00:00 | I22: =+'請求書入力 (記入例)'!$BR$7 -> バイパス代立替 | N22: =+'請求書入力 (記入例)'!$BW$7 -> 1 | O22: =+'請求書入力 (記入例)'!$BX$7 -> 式 | P22: =+'請求書入力 (記入例)'!$BY$7 -> 3000 | Q22: =+'請求書入力 (記入例)'!$BZ$7 -> 3000 | R22: =+Q22*0.08 -> 240 | S22: =+P22+Q22 -> 6000
A23: 3 | B23: =+'請求書入力 (記入例)'!$BK$8 -> 00:00:00 | C23: =+'請求書入力 (記入例)'!$BL$8 -> 00:00:00 | F23: =+'請求書入力 (記入例)'!$BO$8 -> 00:00:00 | I23: =+'請求書入力 (記入例)'!$BR$8 -> 0 | N23: =+'請求書入力 (記入例)'!$BW$8 -> 0 | O23: =+'請求書入力 (記入例)'!$BX$8 -> 0 | P23: =+'請求書入力 (記入例)'!$BY$8 -> 0 | Q23: =+'請求書入力 (記入例)'!$BZ$8 -> 0 | R23: 0 | S23: 0
A24: 4 | B24: =+'請求書入力 (記入例)'!$BK$9 -> 00:00:00 | C24: =+'請求書入力 (記入例)'!$BL$9 -> 00:00:00 | F24: =+'請求書入力 (記入例)'!$BO$9 -> 00:00:00 | I24: =+'請求書入力 (記入例)'!$BR$9 -> 0 | N24: =+'請求書入力 (記入例)'!$BW$9 -> 0 | O24: =+'請求書入力 (記入例)'!$BX$9 -> 0 | P24: =+'請求書入力 (記入例)'!$BY$9 -> 0 | Q24: =+'請求書入力 (記入例)'!$BZ$9 -> 0 | R24: 0 | S24: 0
A25: 5 | B25: =+'請求書入力 (記入例)'!$BK$10 -> 00:00:00 | C25: =+'請求書入力 (記入例)'!$BL$10 -> 00:00:00 | F25: =+'請求書入力 (記入例)'!$BO$10 -> 00:00:00 | I25: =+'請求書入力 (記入例)'!$BR$10 -> 0 | N25: =+'請求書入力 (記入例)'!$BW$10 -> 0 | O25: =+'請求書入力 (記入例)'!$BX$10 -> 0 | P25: =+'請求書入力 (記入例)'!$BY$10 -> 0 | Q25: =+'請求書入力 (記入例)'!$BZ$10 -> 0 | R25: 0 | S25: 0
A26: 合計金額 | N26: 1 | O26: 式 | P26: =SUM(P21:P25) -> 53000 | Q26: =SUM(Q21:Q25) -> 53000 | R26: =SUM(R21:R25) -> 4240 | S26: =SUM(S21:S25) -> 60000
B29: 注文書番号 | E29: =+'請求書入力 (記入例)'!$BN$12 -> B27008458 | P29: 社長承認 | Q29: 現場担当者 | R29: 経理担当者
B30: 契約金額 | E30: =+'請求書入力 (記入例)'!$BW$12 -> 1080000
B31: 出来高（納入高） | E31: =+'請求書入力 (記入例)'!$BW$13 -> 864000
B32: 既請求分 | E32: =+'請求書入力 (記入例)'!$BW$14 -> 648000
B33: 今回請求分 | E33: =+'請求書入力 (記入例)'!$BW$15 -> 216000
B34: 残 額 | E34: =+'請求書入力 (記入例)'!$BW$16 -> 216000
A37: 請求書 （支払伝票）
A40: 請求先 | C40: ㈱占部組 | K40: 御中 | M40: 請求元 | N40: 社名 | P40: =+'請求書入力 (記入例)'!I82 -> 0
N41: 業者番号 | P41: =+'請求書入力 (記入例)'!$I$1 -> 8088 | S41: 印
N42: 代表者名 | P42: =+'請求書入力 (記入例)'!$I$13 -> 山本カンサイ
A43: 請求日 | D43: 平成 | E43: =+'請求書入力 (記入例)'!$L$22 -> 28 | F43: 年 | G43: =+'請求書入力 (記入例)'!$Q$22 -> 2 | H43: 月 | I43: =+'請求書入力 (記入例)'!$V$22 -> 28 | J43: 日 | N43: 住所 | P43: =+"〒 "&'請求書入力 (記入例)'!$I$5&" "&+'請求書入力 (記入例)'!$P$5 -> 〒 110 5959
A44: 請求締日 | E44: =+'請求書入力 (記入例)'!$K$19 -> 28 | G44: 年 | H44: =+'請求書入力 (記入例)'!$O$19 -> 2 | J44: 月末締 | P44: =+'請求書入力 (記入例)'!I79 -> 0
N45: 電話 | P45: =+'請求書入力 (記入例)'!$I$14 -> 090-9999-9999
A46: 御請求金額 | C46: =+$R$26 -> 4240 | N46: ＦＡＸ | P46: =+'請求書入力 (記入例)'!$I$16 -> 050-999-5555
N47: 振込先 | P47: =+'請求書入力 (記入例)'!$AS$21 -> カンサイ銀行 | Q47: =+'請求書入力 (記入例)'!$AS$23 -> 淀橋支店 | R47: =+'請求書入力 (記入例)'!$AS$25 -> 普通
P48: =+'請求書入力 (記入例)'!$AS$27 -> 0010100 | Q48: =+'請求書入力 (記入例)'!$AS$29 -> カ.ヤマモトケンセツ
B50: 工事番号 | E50: =+'請求書入力 (記入例)'!$W$1 -> 2700108 | P50: 担当者 | Q50: =+'請求書入力 (記入例)'!$AB$5 -> 山本
B51: 工事名 | E51: =+'請求書入力 (記入例)'!AH$1 -> 水素ステーション
B52: 大区分 | D52: =+'請求書入力 (記入例)'!$BL$1 -> 土木（1）
B54: 支払い条件 | F54: 支払い金額 | N54: 支払日 | Q54: 伝票番号
B55: 翌末払い | N55: 年 月 日
B56: 翌々10日払い | N56: 年 月 日
B57: ＯＰ締め払い | N57: 年 月 日
B58: その他払い | N58: 年 月 日
B59: 立替相殺
B60: 業者 | N60: 金額
B61: 適用
B69: 担当者印 | D69: 社長印 | G69: 経理課長印
